[Event "IIFL Wealth 4th Mumbai GM"]
[Site "Mumbai"]
[Date "2018.12.31"]
[Round "2"]
[White "Anuj Shrivatri"]
[Black "Varshini, V."]
[Result "1/2-1/2"]
[ECO "A14"]
[WhiteElo "2357"]
[BlackElo "2171"]
[Annotator "NA"]
[PlyCount "59"]
[EventDate "2018.12.30"]
[EventType "swiss"]
[EventCountry "IND"]
[SourceTitle "playchess.com"]
[Source "ChessBase"]
[SourceQuality "1"]
[TimeControl "40/5400+30:1800+30"]

1. Nf3 {[%emt 0:00:00]} d5 {[%emt 0:00:05]} 2. c4 {[%emt 0:00:00]} e6 {[%emt 0:00:31]} 3. g3 {[%emt 0:03:05]} Nf6 {[%emt 0:00:44]} 4. Bg2 {[%emt 0:00:06]} Be7 {[%emt 0:00:10]} 5. O-O {[%emt 0:00:06]} O-O {[%emt 0:00:22]} 6. b3 {[%emt 0:00:04]} c5 {[%emt 0:01:21]} 7. Bb2 {[%emt 0:00:19]} b6 {[%emt 0:00:42]} 8. cxd5 {[%emt 0:00:25]} exd5 {[%emt 0:00:21]} 9. d4 {[%emt 0:00:25]} Nbd7 {[%emt 0:07:51]} 10. Nc3 {[%emt 0:01:11]} Bb7 {[%emt 0:00:30]} 11. Rc1 {[%emt 0:00:30]} a6 {[%emt 0:08:30]} 12. dxc5 {[%emt 0:17:12]} Nxc5 {[%emt 0:02:31]} 13. Nd4 {[%emt 0:05:33]} Re8 {[%emt 0:12:08]} 14. Qc2 {[%emt 0:15:27]} Rc8 {[%emt 0:08:02]} 15. Bh3 {[%emt 0:06:15]} Rc7 {[%emt 0:02:59]} 16. Na4 {[%emt 0:03:24]} Bd6 {[%emt 0:05:26]} 17. Nxc5 {[%emt 0:00:50]} bxc5 {[%emt 0:02:46]} 18. Nf5 {[%emt 0:02:14]} Re5 {[%emt 0:04:36]} 19. Bg2 {[%emt 0:14:42]} Ne4 {[%emt 0:08:41]} 20. Nd4 {[%emt 0:05:14]} Rc8 {[%emt 0:07:31]} 21. Nf3 {[%emt 0:00:17]} Re7 {[%emt 0:00:56]} 22. e3 {[%emt 0:03:11]} Qb6 {[%emt 0:03:52]} 23. Nd2 {[%emt 0:01:07]} Nf6 {[%emt 0:04:04]} 24. Rfe1 {[%emt 0:00:20]} h6 {[%emt 0:04:38]} 25. Qd3 {[%emt 0:04:55]} a5 {[%emt 0:04:41]} 26. Nb1 {[%emt 0:01:01]} Ne4 {[%emt 0:03:48]} 27. Nc3 {[%emt 0:00:41]} Nxc3 {[%emt 0:01:28]} 28. Qxc3 {[%emt 0:01:19]} d4 {[%emt 0:00:29]} 29. exd4 {[%emt 0:00:15]} Rxe1+ {[%emt 0:00:28]} 30. Qxe1 {[%emt 0:00:05]} 1/2-1/2

[Event "IIFL Wealth 4th Mumbai GM"]
[Site "Mumbai"]
[Date "2018.12.31"]
[Round "2"]
[White "Tran, Minh Thang"]
[Black "Pranesh M"]
[Result "1-0"]
[ECO "A05"]
[WhiteElo "2342"]
[BlackElo "2125"]
[Annotator "NA"]
[PlyCount "79"]
[EventDate "2018.12.30"]
[EventType "swiss"]
[EventCountry "IND"]
[SourceTitle "playchess.com"]
[Source "ChessBase"]
[SourceQuality "1"]
[TimeControl "40/5400+30:1800+30"]

1. Nf3 {[%emt 0:00:00]} Nf6 {[%emt 0:00:00]} 2. b3 {[%emt 0:00:02]} g6 {[%emt 0:00:07]} 3. Bb2 {[%emt 0:00:12]} Bg7 {[%emt 0:00:07]} 4. g3 {[%emt 0:00:25]} O-O {[%emt 0:00:35]} 5. Bg2 {[%emt 0:00:42]} c5 {[%emt 0:00:03]} 6. c4 {[%emt 0:00:35]} d6 {[%emt 0:00:50]} 7. O-O {[%emt 0:00:14]} e5 {[%emt 0:00:32]} 8. d3 {[%emt 0:00:26]} Nc6 {[%emt 0:00:01]} 9. Nc3 {[%emt 0:00:24]} Be6 {[%emt 0:01:25]} 10. Nd2 {[%emt 0:00:37]} Qd7 {[%emt 0:00:53]} 11. Nde4 {[%emt 0:01:06]} Bh3 {[%emt 0:01:53]} 12. Nxf6+ {[%emt 0:04:50]} Bxf6 {[%emt 0:00:10]} 13. Nd5 {[%emt 0:00:17]} Bg7 {[%emt 0:00:23]} 14. f4 {[%emt 0:05:57]} Rae8 {[%emt 0:03:05]} 15. fxe5 {[%emt 0:03:19]} Nxe5 {[%emt 0:00:34]} 16. Qd2 {[%emt 0:02:00]} Bxg2 {[%emt 0:02:29]} 17. Kxg2 {[%emt 0:00:03]} f5 {[%emt 0:00:14]} 18. h3 {[%emt 0:04:15]} Nc6 {[%emt 0:08:11]} 19. Rae1 {[%emt 0:01:45]} Ne7 {[%emt 0:01:13]} 20. Bxg7 {[%emt 0:00:53]} Nxd5 {[%emt 0:07:08]} 21. Bh6 {[%emt 0:01:02]} Nf6 {[%emt 0:01:24]} 22. Bxf8 {[%emt 0:00:16]} Rxf8 {[%emt 0:00:04]} 23. e4 {[%emt 0:00:48]} Qc6 {[%emt 0:00:10]} 24. Kh2 {[%emt 0:00:12]} fxe4 {[%emt 0:00:28]} 25. dxe4 {[%emt 0:00:07]} Kg7 {[%emt 0:00:04]} 26. Qc3 {[%emt 0:00:23]} Qa6 {[%emt 0:01:17]} 27. Re2 {[%emt 0:01:16]} Qb6 {[%emt 0:00:52]} 28. Ref2 {[%emt 0:00:13]} Qd8 {[%emt 0:00:09]} 29. e5 {[%emt 0:00:41]} dxe5 {[%emt 0:00:15]} 30. Qxe5 {[%emt 0:00:07]} h6 {[%emt 0:00:57]} 31. Qxc5 {[%emt 0:00:26]} h5 {[%emt 0:00:49]} 32. Qe5 {[%emt 0:00:21]} b6 {[%emt 0:00:21]} 33. b4 {[%emt 0:00:45]} Rf7 {[%emt 0:00:25]} 34. c5 {[%emt 0:00:14]} bxc5 {[%emt 0:00:20]} 35. bxc5 {[%emt 0:00:08]} Rf8 {[%emt 0:00:38]} 36. c6 {[%emt 0:00:09]} Rf7 {[%emt 0:00:01]} 37. Rxf6 {[%emt 0:00:14]} Rxf6 {[%emt 0:00:22]} 38. Qxf6+ {[%emt 0:00:09]} Qxf6 {[%emt 0:00:01]} 39. Rf2 Qf4 40. Rxf4 {[%emt 0:00:40] Kf6 [%clk 1:10:57] Rxf6 [%clk 1:44:11]} 1-0

[Event "IIFL Wealth 4th Mumbai GM"]
[Site "Mumbai"]
[Date "2018.12.31"]
[Round "2"]
[White "Siva Mahadevan"]
[Black "Snehal, Bhosale"]
[Result "1-0"]
[ECO "B66"]
[WhiteElo "2333"]
[BlackElo "2135"]
[Annotator "NA"]
[PlyCount "79"]
[EventDate "2018.12.30"]
[EventType "swiss"]
[EventCountry "IND"]
[SourceTitle "playchess.com"]
[Source "ChessBase"]
[SourceQuality "1"]
[TimeControl "40/5400+30:1800+30"]

1. e4 {[%emt 0:00:00]} c5 {[%emt 0:00:00]} 2. Nf3 {[%emt 0:00:00]} d6 {[%emt 0:00:00]} 3. d4 {[%emt 0:00:00]} cxd4 {[%emt 0:00:00]} 4. Nxd4 {[%emt 0:00:07]} Nf6 {[%emt 0:00:01]} 5. Nc3 {[%emt 0:00:08]} Nc6 {[%emt 0:00:06]} 6. Bg5 {[%emt 0:01:14]} e6 {[%emt 0:00:24]} 7. Qd2 {[%emt 0:00:15]} a6 {[%emt 0:00:09]} 8. Nxc6 {[%emt 0:01:14]} bxc6 {[%emt 0:00:26]} 9. O-O-O {[%emt 0:00:07]} Be7 {[%emt 0:01:49]} 10. Bc4 {[%emt 0:00:44]} d5 {[%emt 0:10:10]} 11. Bb3 {[%emt 0:07:56]} O-O {[%emt 0:06:17]} 12. Rhe1 {[%emt 0:00:34]} h6 {[%emt 0:02:04]} 13. Bf4 {[%emt 0:09:11]} Nd7 {[%emt 0:06:20]} 14. exd5 {[%emt 0:25:52]} cxd5 {[%emt 0:02:59]} 15. Bxd5 {[%emt 0:00:11]} exd5 {[%emt 0:04:11]} 16. Nxd5 {[%emt 0:00:20]} Bc5 {[%emt 0:23:31]} 17. Bxh6 {[%emt 0:10:32]} Bb7 {[%emt 0:20:34]} 18. Bg5 {[%emt 0:07:05]} f6 {[%emt 0:00:48]} 19. Be3 {[%emt 0:08:14]} Re8 {[%emt 0:10:20]} 20. Bxc5 {[%emt 0:02:15]} Nxc5 {[%emt 0:05:50]} 21. Rxe8+ {[%emt 0:01:08]} Qxe8 {[%emt 0:00:03]} 22. Nc7 {[%emt 0:00:09]} Qc6 {[%emt 0:02:24]} 23. Nxa8 {[%emt 0:00:22]} Bxa8 {[%emt 0:00:04]} 24. f3 {[%emt 0:00:35]} Kh7 {[%emt 0:00:48]} 25. Qc3 {[%emt 0:05:49]} Qb6 {[%emt 0:02:03]} 26. Rd4 {[%emt 0:03:09]} Bb7 {[%emt 0:01:07]} 27. b4 {[%emt 0:05:15]} Ne6 {[%emt 0:00:23]} 28. Qd3+ {[%emt 0:00:08]} Kg8 {[%emt 0:00:21]} 29. Rd6 {[%emt 0:00:18]} Qg1+ {[%emt 0:00:30]} 30. Kb2 {[%emt 0:00:10]} Qe1 {[%emt 0:00:19]} 31. Qc3 {[%emt 0:01:49]} Qe2 {[%emt 0:00:29]} 32. Rb6 {[%emt 0:04:23]} Bd5 {[%emt 0:00:31]} 33. Rd6 {[%emt 0:03:06]} Bc4 {[%emt 0:00:47]} 34. Rd2 {[%emt 0:01:15]} Qf1 {[%emt 0:00:02]} 35. a4 {[%emt 0:00:47]} Kh8 {[%emt 0:00:56]} 36. b5 {[%emt 0:00:24]} axb5 {[%emt 0:00:39]} 37. axb5 {[%emt 0:00:17]} Kh7 {[%emt 0:00:33]} 38. Qe3 {[%emt 0:01:12]} Nc7 {[%emt 0:00:29]} 39. b6 {[%emt 0:00:11]} Na6 {[%emt 0:00:31]} 40. Qf2 {[%emt 0:00:00]} 1-0

[Event "IIFL Wealth 4th Mumbai GM"]
[Site "Mumbai"]
[Date "2018.12.31"]
[Round "2"]
[White "Srijit Paul"]
[Black "Khusenkhojaev, Muhammad"]
[Result "0-1"]
[ECO "C54"]
[WhiteElo "2298"]
[BlackElo "2455"]
[Annotator "ChessBase"]
[PlyCount "59"]
[EventDate "2018.12.30"]
[EventType "swiss"]
[EventCountry "IND"]
[SourceTitle "playchess.com"]
[Source "ChessBase"]
[SourceQuality "1"]
[TimeControl "40/5400+30:1800+30"]

1. e4 {[%emt 0:00:00]} e5 {[%emt 0:00:00]} 2. Nf3 {[%emt 0:00:00]} Nc6 {[%emt 0:00:00]} 3. Bc4 {[%emt 0:00:00]} Bc5 {[%emt 0:00:05]} 4. c3 {[%emt 0:00:00]} Nf6 {[%emt 0:00:06]} 5. d3 {[%emt 0:00:00]} d6 {[%emt 0:00:11]} 6. Bb3 {[%emt 0:00:12]} a6 {[%emt 0:00:12]} 7. h3 {[%emt 0:00:06]} Ba7 {[%emt 0:00:08]} 8. Nbd2 {[%emt 0:00:13]} O-O {[%emt 0:00:16]} 9. Nf1 {[%emt 0:00:04]} d5 {[%emt 0:00:14]} 10. Qe2 {[%emt 0:00:05]} Be6 {[%emt 0:00:18]} 11. Bc2 {[%emt 0:00:38]} b5 {[%emt 0:02:12]} 12. N3h2 {[%emt 0:13:11]} Nd7 {[%emt 0:09:07]} 13. Ne3 {[%emt 0:02:22]} d4 {[%emt 0:00:34]} 14. Nf5 {[%emt 0:00:25]} dxc3 {[%emt 0:03:26]} 15. bxc3 {[%emt 0:01:22]} b4 {[%emt 0:00:23]} 16. Ba4 {[%emt 0:36:19]} Nc5 {[%emt 0:00:29]} 17. Bxc6 {[%emt 0:00:07]} Nxd3+ {[%emt 0:00:11]} 18. Kf1 {[%emt 0:00:01]} Nxf2 {[%emt 0:00:17]} 19. Be3 {[%emt 0:00:11]} Nxh1 {[%emt 0:06:41]} 20. Bxa7 {[%emt 0:25:55]} Bxf5 {[%emt 0:00:54]} 21. Qe3 {[%emt 0:00:07]} Rxa7 {[%emt 0:00:46]} 22. exf5 {[%emt 0:00:22]} Qd6 {[%emt 0:01:49]} 23. Bf3 {[%emt 0:01:34]} e4 {[%emt 0:01:34]} 24. Ng4 {[%emt 0:10:58]} Ng3+ {[%emt 0:03:33]} 25. Kf2 {[%emt 0:01:22]} exf3 {[%emt 0:01:24]} 26. Qxa7 {[%emt 0:00:13]} Nxf5 {[%emt 0:00:44]} 27. Kg1 {[%emt 0:00:21]} bxc3 {[%emt 0:03:37]} 28. Qf2 {[%emt 0:00:18]} c2 {[%emt 0:01:27]} 29. Rc1 {[%emt 0:00:53]} h5 30. Ra1 0-1

[Event "IIFL Wealth 4th Mumbai GM"]
[Site "Mumbai"]
[Date "2018.12.31"]
[Round "2"]
[White "Mohota, Nisha"]
[Black "Muthaiah AL"]
[Result "0-1"]
[ECO "B22"]
[WhiteElo "2264"]
[BlackElo "2408"]
[Annotator "NA"]
[PlyCount "88"]
[EventDate "2018.12.30"]
[EventType "swiss"]
[EventCountry "IND"]
[SourceTitle "playchess.com"]
[Source "ChessBase"]
[SourceQuality "1"]
[TimeControl "40/5400+30:1800+30"]

1. e4 {[%emt 0:00:00]} c5 {[%emt 0:01:01]} 2. c3 {[%emt 0:00:00]} Nf6 {[%emt 0:01:30]} 3. e5 {[%emt 0:00:00]} Nd5 {[%emt 0:00:06]} 4. Nf3 {[%emt 0:00:00]} d6 {[%emt 0:00:43]} 5. Bc4 {[%emt 0:00:00]} e6 {[%emt 0:00:29]} 6. d4 {[%emt 0:00:08]} cxd4 {[%emt 0:04:56]} 7. cxd4 {[%emt 0:00:03]} Nc6 {[%emt 0:00:17]} 8. O-O {[%emt 0:00:22]} Be7 {[%emt 0:01:14]} 9. Bd2 {[%emt 0:02:22]} O-O {[%emt 0:02:03]} 10. Nc3 {[%emt 0:04:00]} Nb6 {[%emt 0:02:38]} 11. Bb3 {[%emt 0:02:06]} d5 {[%emt 0:21:45]} 12. Bc2 {[%emt 0:07:23]} Bd7 {[%emt 0:01:21]} 13. a3 {[%emt 0:13:24]} Rc8 {[%emt 0:04:36]} 14. Be3 {[%emt 0:01:51]} Nc4 {[%emt 0:04:28]} 15. Qd3 {[%emt 0:00:59]} g6 {[%emt 0:00:05]} 16. Bc1 {[%emt 0:03:39]} b5 {[%emt 0:12:27]} 17. Ne2 {[%emt 0:19:09]} f6 {[%emt 0:14:25]} 18. exf6 {[%emt 0:02:53]} Bxf6 {[%emt 0:02:21]} 19. b3 {[%emt 0:08:37]} e5 {[%emt 0:06:18]} 20. bxc4 {[%emt 0:03:24]} e4 {[%emt 0:00:31]} 21. Qe3 {[%emt 0:01:19]} exf3 {[%emt 0:00:13]} 22. Qxf3 {[%emt 0:01:00]} dxc4 {[%emt 0:00:19]} 23. Be3 {[%emt 0:05:04]} Rf7 {[%emt 0:06:55]} 24. Be4 {[%emt 0:05:27]} Ne7 {[%emt 0:01:23]} 25. Nf4 {[%emt 0:01:53]} Bc6 {[%emt 0:03:31]} 26. Rad1 {[%emt 0:04:18]} Bxe4 {[%emt 0:02:06]} 27. Qxe4 {[%emt 0:00:04]} Nf5 {[%emt 0:01:30]} 28. d5 {[%emt 0:00:46]} Qd6 {[%emt 0:01:08]} 29. Bc1 {[%emt 0:05:52]} c3 {[%emt 0:01:21]} 30. Qe6 {[%emt 0:03:27]} Rd8 {[%emt 0:01:08]} 31. Rd3 {[%emt 0:01:40]} a5 {[%emt 0:00:38]} 32. Qe4 {[%emt 0:03:32]} Qe5 {[%emt 0:01:02]} 33. Qf3 {[%emt 0:01:06]} Nd4 {[%emt 0:01:17]} 34. Qg4 {[%emt 0:00:32]} Qf5 {[%emt 0:00:42]} 35. Qxf5 {[%emt 0:00:33]} Nxf5 {[%emt 0:00:07]} 36. g4 {[%emt 0:00:29]} Nd6 {[%emt 0:00:50]} 37. Ne6 {[%emt 0:00:31]} Rc8 {[%emt 0:00:18]} 38. Be3 {[%emt 0:00:32]} b4 {[%emt 0:00:44]} 39. axb4 {[%emt 0:00:04]} axb4 {[%emt 0:00:01]} 40. Bc5 {[%emt 0:00:00]} b3 {[%emt 0:00:00]} 41. Bxd6 {[%emt 0:21:16]} b2 {[%emt 0:01:12]} 42. Bf4 {[%emt 0:03:07]} c2 {[%emt 0:04:37]} 43. Rdd1 {[%emt 0:00:59]} cxd1=Q {[%emt 0:01:14]} 44. Rxd1 {[%emt 0:00:04]} Ra7 {[%emt 0:00:16]} 0-1

[Event "IIFL Wealth 4th Mumbai GM"]
[Site "Mumbai"]
[Date "2018.12.31"]
[Round "2"]
[White "Aditya Mittal"]
[Black "Sardana, Rishi"]
[Result "1/2-1/2"]
[ECO "D35"]
[WhiteElo "2251"]
[BlackElo "2398"]
[Annotator "NA"]
[PlyCount "159"]
[EventDate "2018.12.30"]
[EventType "swiss"]
[EventCountry "IND"]
[SourceTitle "playchess.com"]
[Source "ChessBase"]
[SourceQuality "1"]
[TimeControl "40/5400+30:1800+30"]

1. d4 e6 2. c4 Nf6 3. Nc3 d5 4. cxd5 exd5 5. Bg5 c6 6. e3 Nbd7 7. Bd3 Be7 8. Nge2 Nh5 9. Bxe7 Qxe7 10. g4 Nhf6 11. Ng3 g6 {D35: Queen's Gambit Declined: Exchange Variation} 12. Qe2 Nb6 13. g5 {LiveBook: 4 Games} Ng8 14. h4 h6 15. O-O-O Be6 16. h5 Qxg5 17. hxg6 fxg6 18. Rdg1 {[#]} Bf7 $146 ({Predecessor:} 18... Qf6 19. Bxg6+ Qxg6 {1-0 (28) Jobava,B (2712)-Heberla,B (2558) Austria 2018}) 19. Nh5 Qe7 20. Bxg6 O-O-O 21. Bxf7 Qxf7 22. Rg7 Qf5 23. Nf4 Kb8 24. Rh5 Qf6 25. Qg4 Qd6 26. Rg6 Nf6 27. Qh4 Rdf8 28. Rf5 Nbd7 29. Nh5 Qe6 30. Qf4+ Ka8 31. Nxf6 Rf7 32. Ne2 c5 33. Ng3 cxd4 34. Rg8+ Rxg8 35. Nxg8 Rxf5 36. Qxf5 Qxg8 37. Qxd7 dxe3 38. Qf5 d4 39. Ne2 d3 40. Qxd3 exf2 41. Nc3 Qg5+ 42. Kc2 Qf6 43. Qf1 a6 44. Nd1 Qc6+ 45. Kd2 Qd5+ 46. Ke2 Qxa2 47. Qxf2 Qc4+ 48. Kd2 Qb4+ 49. Kc1 h5 50. Qe3 h4 51. Nf2 Qc4+ 52. Kd1 Qd5+ 53. Ke1 Qa5+ 54. Kd1 Qd5+ 55. Kc1 Qc6+ 56. Kb1 Qg6+ 57. Ka2 Qg8+ 58. b3 Qg3 59. Qc5 Qf4 60. Ka3 Qf3 61. Qd4 Qf8+ 62. Kb2 Qe7 63. Nd3 Qh7 64. Nc5 Qc7 65. Nd7 Qh2+ 66. Ka3 h3 67. Nb6+ Ka7 68. Nd7+ Ka8 69. Kb4 Qg3 70. Qh8+ Ka7 71. Qd4+ Ka8 72. Nb6+ Kb8 73. Qd8+ Ka7 74. Nc8+ Kb8 75. Nb6+ Ka7 76. Nc8+ Kb8 77. Nd6+ Ka7 78. Nc8+ Kb8 79. Nd6+ $11 Ka7 80. Nc8+ 1/2-1/2

[Event "IIFL Wealth 4th Mumbai GM"]
[Site "Mumbai"]
[Date "2018.12.31"]
[Round "2"]
[White "Varga, Klara"]
[Black "Mohammad Fahad, Rahman"]
[Result "0-1"]
[ECO "A13"]
[WhiteElo "2242"]
[BlackElo "2381"]
[Annotator "NA"]
[PlyCount "72"]
[EventDate "2018.12.30"]
[EventType "swiss"]
[EventCountry "IND"]
[SourceTitle "playchess.com"]
[Source "ChessBase"]
[SourceQuality "1"]
[TimeControl "40/5400+30:1800+30"]

1. c4 {[%emt 0:00:00]} e6 {[%emt 0:00:00]} 2. Nc3 {[%emt 0:00:00]} d5 {[%emt 0:00:20]} 3. e3 {[%emt 0:00:02]} Nf6 {[%emt 0:00:16]} 4. Nf3 {[%emt 0:00:05]} Be7 {[%emt 0:00:18]} 5. b3 {[%emt 0:01:16]} c5 {[%emt 0:01:54]} 6. Bb2 {[%emt 0:00:53]} Nc6 {[%emt 0:00:14]} 7. cxd5 {[%emt 0:00:17]} exd5 {[%emt 0:00:13]} 8. d4 {[%emt 0:00:18]} Qa5 {[%emt 0:03:45]} 9. Qd2 {[%emt 0:03:56]} O-O {[%emt 0:01:39]} 10. Be2 {[%emt 0:04:03]} cxd4 {[%emt 0:04:33]} 11. Nxd4 {[%emt 0:05:14]} Nxd4 {[%emt 0:04:59]} 12. exd4 {[%emt 0:02:31]} Bf5 {[%emt 0:17:36]} 13. O-O {[%emt 0:01:58]} Rac8 {[%emt 0:04:10]} 14. Qf4 {[%emt 0:08:25]} Bg6 {[%emt 0:03:51]} 15. Rac1 {[%emt 0:00:24]} Bb4 {[%emt 0:02:34]} 16. Qg3 {[%emt 0:15:36]} Bxc3 {[%emt 0:06:45]} 17. Bxc3 {[%emt 0:00:15]} Qxa2 {[%emt 0:00:11]} 18. Bb4 {[%emt 0:00:48]} Qxe2 {[%emt 0:00:41]} 19. Bxf8 {[%emt 0:00:07]} Rxf8 {[%emt 0:00:05]} 20. Qd6 {[%emt 0:00:47]} Re8 {[%emt 0:01:07]} 21. Qb4 {[%emt 0:03:33]} Qg4 {[%emt 0:09:29]} 22. Qxb7 {[%emt 0:02:57]} Bd3 {[%emt 0:05:51]} 23. Rfe1 {[%emt 0:04:10]} Be4 {[%emt 0:06:28]} 24. f3 {[%emt 0:00:12]} Bxf3 {[%emt 0:00:06]} 25. Rxe8+ {[%emt 0:00:06]} Nxe8 {[%emt 0:00:05]} 26. Rc2 {[%emt 0:00:09]} Qxd4+ {[%emt 0:00:11]} 27. Rf2 {[%emt 0:00:09]} Bh5 {[%emt 0:00:04]} 28. Qd7 {[%emt 0:03:01]} f6 {[%emt 0:01:04]} 29. h3 {[%emt 0:01:53]} Bg6 {[%emt 0:04:05]} 30. b4 h5 31. b5 {[%emt 0:01:24]} Kh7 {[%emt 0:00:56]} 32. h4 {[%emt 0:02:54]} Qc5 {[%emt 0:01:07]} 33. Qc6 {[%emt 0:08:03]} Qd4 {[%emt 0:01:31]} 34. Qd7 {[%emt 0:00:18]} Qb6 {[%emt 0:00:44]} 35. Qxd5 {[%emt 0:00:44]} Nd6 {[%emt 0:00:11]} 36. Qc6 {[%emt 0:00:45]} Qd4 0-1

[Event "IIFL Wealth 4th Mumbai GM"]
[Site "Mumbai"]
[Date "2018.12.31"]
[Round "2"]
[White "Wagh Suyog"]
[Black "Rathnakaran, K.."]
[Result "1-0"]
[ECO "A04"]
[WhiteElo "2240"]
[BlackElo "2366"]
[Annotator "NA"]
[PlyCount "75"]
[EventDate "2018.12.30"]
[EventType "swiss"]
[EventCountry "IND"]
[SourceTitle "playchess.com"]
[Source "ChessBase"]
[SourceQuality "1"]
[TimeControl "40/5400+30:1800+30"]

1. Nf3 {[%emt 0:00:00]} g6 {[%emt 0:00:00]} 2. g3 {[%emt 0:02:04]} Bg7 {[%emt 0:00:00]} 3. d4 {[%emt 0:00:03]} c5 {[%emt 0:00:00]} 4. c3 {[%emt 0:06:49]} cxd4 {[%emt 0:00:37]} 5. cxd4 {[%emt 0:02:20]} Nf6 {[%emt 0:00:05]} 6. Bg2 {[%emt 0:02:52]} O-O {[%emt 0:00:15]} 7. Nc3 {[%emt 0:05:46]} d5 {[%emt 0:00:09]} 8. O-O {[%emt 0:03:22]} Nc6 {[%emt 0:00:10]} 9. Ne5 {[%emt 0:00:38]} Be6 {[%emt 0:01:34]} 10. Nxc6 {[%emt 0:10:34]} bxc6 {[%emt 0:00:06]} 11. Na4 {[%emt 0:02:24]} Qc8 {[%emt 0:00:30]} 12. b3 {[%emt 0:06:47]} Bh3 {[%emt 0:00:26]} 13. Bb2 {[%emt 0:00:05]} h5 {[%emt 0:02:30]} 14. Rc1 {[%emt 0:01:28]} h4 {[%emt 0:00:41]} 15. Qc2 {[%emt 0:03:03]} Bh6 {[%emt 0:02:06]} 16. e3 {[%emt 0:19:10]} Bxg2 {[%emt 0:05:04]} 17. Kxg2 {[%emt 0:00:47]} Kg7 {[%emt 0:00:05]} 18. Nc5 {[%emt 0:04:54]} Rh8 {[%emt 0:00:40]} 19. Rh1 {[%emt 0:00:14]} h3+ {[%emt 0:01:26]} 20. Kf1 {[%emt 0:00:54]} Ng4 {[%emt 0:00:10]} 21. Ke2 {[%emt 0:02:42]} Rd8 {[%emt 0:00:23]} 22. Rce1 {[%emt 0:02:09]} a5 {[%emt 0:07:44]} 23. Kd1 {[%emt 0:03:52]} Kh7 {[%emt 0:00:58]} 24. Kc1 {[%emt 0:02:36]} e5 {[%emt 0:00:06]} 25. dxe5 {[%emt 0:00:45]} d4 {[%emt 0:00:05]} 26. Kb1 {[%emt 0:01:14]} dxe3 {[%emt 0:01:18]} 27. fxe3 {[%emt 0:00:30]} Nxe3 {[%emt 0:02:18]} 28. Qe4 {[%emt 0:10:06]} Qf5 {[%emt 0:00:37]} 29. Bc1 {[%emt 0:02:42]} Rd4 {[%emt 0:00:34]} 30. Qxf5 {[%emt 0:00:30]} Nxf5 {[%emt 0:00:06]} 31. Bb2 {[%emt 0:00:38]} Rd2 {[%emt 0:02:05]} 32. g4 {[%emt 0:01:38]} Nh4 {[%emt 0:02:18]} 33. Ne4 {[%emt 0:01:05]} Rg2 {[%emt 0:00:18]} 34. Rhf1 {[%emt 0:00:45]} Rxh2 {[%emt 0:10:11]} 35. Rxf7+ {[%emt 0:00:45]} Bg7 {[%emt 0:00:05]} 36. Bc3 {[%emt 0:01:05]} Rf8 {[%emt 0:01:22]} 37. e6 {[%emt 0:00:21]} Rxf7 {[%emt 0:00:25]} 38. Ng5+ {[%emt 0:00:12]} 1-0

[Event "IIFL Wealth 4th Mumbai GM"]
[Site "Mumbai"]
[Date "2018.12.31"]
[Round "2"]
[White "Kurbonboeva, Sarvinoz"]
[Black "Rozum, Ivan"]
[Result "1/2-1/2"]
[ECO "A53"]
[WhiteElo "2214"]
[BlackElo "2589"]
[Annotator "RC"]
[PlyCount "117"]
[EventDate "2018.12.30"]
[EventType "swiss"]
[EventCountry "IND"]
[SourceTitle "playchess.com"]
[Source "ChessBase"]
[SourceQuality "1"]
[TimeControl "40/5400+30:1800+30"]

1. d4 {[%emt 0:00:00]} Nf6 {[%emt 0:00:51]} 2. c4 {[%emt 0:00:01]} d6 {[%emt 0:00:06]} 3. Nf3 {[%emt 0:00:48]} g6 {[%emt 0:00:09]} 4. g3 {[%emt 0:02:08]} Bg7 {[%emt 0:02:59]} 5. Bg2 {[%emt 0:00:05]} Bf5 {[%emt 0:00:17]} 6. O-O {[%emt 0:02:18]} O-O {[%emt 0:01:57]} 7. Nc3 {[%emt 0:02:50]} Ne4 {[%emt 0:00:11]} 8. Nxe4 {[%emt 0:01:00]} Bxe4 {[%emt 0:00:04]} 9. Bh3 {[%emt 0:00:30]} Bc6 {[%emt 0:22:32]} 10. Bg2 {[%emt 0:14:51]} e5 {[%emt 0:04:26]} 11. d5 {[%emt 0:18:26]} Bd7 {[%emt 0:02:46]} 12. Bg5 {[%emt 0:06:30]} Qe8 {[%emt 0:03:54]} 13. Qd2 {[%emt 0:05:51]} a5 {[%emt 0:06:53]} 14. Bh6 {[%emt 0:03:48]} b6 {[%emt 0:06:52]} 15. Bxg7 {[%emt 0:10:42]} Kxg7 {[%emt 0:03:37]} 16. b3 {[%emt 0:00:05]} Na6 {[%emt 0:00:46]} 17. a3 {[%emt 0:00:09]} Nc5 {[%emt 0:00:55]} 18. Rab1 {[%emt 0:02:27]} Bf5 {[%emt 0:06:00]} 19. Rb2 {[%emt 0:00:13]} Qd7 {[%emt 0:02:02]} 20. Nh4 {[%emt 0:05:31]} Bh3 {[%emt 0:01:29]} 21. b4 {[%emt 0:00:31]} Bxg2 {[%emt 0:00:32]} 22. Nxg2 {[%emt 0:00:11]} Ne4 {[%emt 0:03:51]} 23. Qc2 {[%emt 0:02:26]} f5 {[%emt 0:01:33]} 24. f3 {[%emt 0:02:09]} Nf6 {[%emt 0:00:09]} 25. Rd1 {[%emt 0:00:04]} axb4 {[%emt 0:01:36]} 26. axb4 {[%emt 0:00:05]} Ra3 {[%emt 0:04:06]} 27. c5 {[%emt 0:01:43]} Rfa8 {[%emt 0:00:51]} 28. cxb6 {[%emt 0:02:07]} cxb6 {[%emt 0:00:07]} 29. Qc6 {[%emt 0:00:03]} b5 {[%emt 0:04:29]} 30. Rc2 {[%emt 0:01:21]} Ra1 {[%emt 0:02:13]} 31. Qxd7+ {[%emt 0:04:07]} Nxd7 {[%emt 0:01:09]} 32. Rxa1 {[%emt 0:00:04]} Rxa1+ {[%emt 0:00:06]} 33. Kf2 {[%emt 0:00:01]} Nf6 {[%emt 0:02:55]} 34. Rc7+ {[%emt 0:02:28]} Kf8 {[%emt 0:02:19]} 35. Rb7 {[%emt 0:06:21]} Nxd5 {[%emt 0:01:07]} 36. Rxb5 {[%emt 0:00:02]} Nc3 {[%emt 0:00:42]} 37. Ra5 {[%emt 0:02:03]} Rb1 {[%emt 0:01:06]} 38. Ra7 {[%emt 0:00:56]} Rb2 {[%emt 0:04:09]} 39. Rxh7 {[%emt 0:00:23]} Nxe2 {[%emt 0:02:05]} 40. Kf1 {[%emt 0:00:00]} Nd4 {[%emt 0:00:00]} 41. f4 {[%emt 0:06:27]} e4 {[%emt 0:04:44]} 42. Rd7 {[%emt 0:00:30]} Nf3 {[%emt 0:23:27]} 43. h3 {[%emt 0:12:30]} Rd2 {[%emt 0:03:05]} 44. b5 {[%emt 0:06:04]} Ke8 {[%emt 0:00:04]} 45. Rg7 {[%emt 0:00:04]} Kd8 {[%emt 0:02:34]} 46. b6 {[%emt 0:01:19]} Kc8 {[%emt 0:00:40]} 47. g4 {[%emt 0:03:55]} d5 {[%emt 0:01:28]} 48. Ne3 {[%emt 0:00:07]} Kb8 {[%emt 0:02:25]} 49. Rd7 {[%emt 0:00:57]} Nh2+ {[%emt 0:01:15]} 50. Ke1 {[%emt 0:00:06]} Nf3+ {[%emt 0:00:04]} 51. Kf1 {[%emt 0:00:02]} Nh2+ {[%emt 0:01:10]} 52. Ke1 {[%emt 0:00:01]} Nf3+ {[%emt 0:00:04]} 53. Kf1 {[%emt 0:00:02]} fxg4 {[%emt 0:00:21]} 54. hxg4 {[%emt 0:00:23]} d4 {[%emt 0:00:11]} 55. Nc4 {[%emt 0:00:11]} Nh2+ {[%emt 0:00:04]} 56. Ke1 {[%emt 0:00:03]} Nf3+ {[%emt 0:00:03]} 57. Kf1 {[%emt 0:00:03]} Nh2+ {[%emt 0:02:12]} 58. Ke1 {[%emt 0:00:01]} Nf3+ {[%emt 0:00:04]} 59. Kf1 {[%emt 0:00:05]} 1/2-1/2